bitfinex/quotes_BTCUSD_20220205
["timestamp","ask_amount","ask_price","bid_price","bid_amount"]
[1644083901939,5.78733878,41605.0,41599.0,0.05]
[1644083902139,0.08254421,41603.0,41599.0,0.05]
[1644083902540,0.08254421,41603.0,41599.0,0.05071755]
[1644083902943,0.08254421,41603.0,41600.0,0.25756955]
[1644083903139,0.08254421,41603.0,41600.0,0.25780282]
[1644083905179,5.78733878,41605.0,41602.0,0.05]
[1644083905380,5.78733878,41605.0,41604.0,0.10941819]
[1644083905583,5.78733878,41605.0,41604.0,0.3768785]
[1644083905777,5.78733878,41605.0,41604.0,0.37923649]
[1644083905977,5.78733878,41605.0,41604.0,0.42923649]
[1644083906177,5.78733878,41605.0,41604.0,0.3179183]
[1644083906491,5.78733878,41605.0,41604.0,0.62734796]
[1644083906680,5.77920299,41605.0,41604.0,0.62734796]
[1644083908327,5.77920299,41605.0,41604.0,0.35752966]
[1644083910426,5.77920299,41605.0,41604.0,0.61420362]
[1644083910731,5.77920299,41605.0,41604.0,0.61471102]
[1644083911127,5.77920299,41605.0,41604.0,0.35752966]
[1644083919433,5.77920299,41605.0,41604.0,0.40752966]
[1644083920275,5.77920299,41605.0,41604.0,0.15941819]
[1644083920476,5.77920299,41605.0,41604.0,0.05]
[1644083920675,5.77920299,41605.0,41603.0,0.15]
[1644083920875,5.77920299,41605.0,41603.0,0.1]
[1644083921279,5.77920299,41605.0,41604.0,0.24566931]
[1644083921474,5.77920299,41605.0,41604.0,0.29566931]
[1644083922677,5.77920299,41605.0,41604.0,0.24566931]
[1644083923336,5.77920299,41605.0,41604.0,0.3550875]
[1644083923741,5.77920299,41605.0,41604.0,0.3549875]
[1644083926042,5.77920299,41605.0,41604.0,0.24566931]
[1644083928380,5.77920299,41605.0,41603.0,0.05023327]
[1644083928579,5.77920299,41605.0,41603.0,0.05]
[1644083929980,5.77920299,41605.0,41603.0,0.27334624]
[1644083930181,5.77920299,41605.0,41603.0,0.05]
[1644083931134,0.33877737,41604.0,41602.0,0.00023327]
[1644083931341,0.33877737,41604.0,41599.0,0.00023327]
[1644083931342,0.23223257,41603.0,41599.0,0.00023327]
[1644083931534,0.56799057,41603.0,41602.0,0.00071804]
[1644083931831,0.56799057,41603.0,41598.0,0.00023327]
[1644083931832,0.75,41602.0,41598.0,0.00023327]
[1644083932032,0.07699124,41601.0,41598.0,0.00023327]
[1644083932232,0.07699124,41601.0,41596.0,0.00287259]
[1644083932433,0.07699124,41601.0,41595.0,0.00023327]
[1644083932633,0.07699124,41601.0,41594.0,0.05023327]
[1644083933436,0.36550674,41597.0,41594.0,0.05023327]
[1644083934035,0.36550674,41597.0,41594.0,0.00023327]
[1644083934237,0.36550674,41597.0,41593.0,0.71207786]
[1644083934887,0.36550674,41597.0,41593.0,0.69207786]
[1644083935091,0.34550674,41597.0,41593.0,0.47990455]
[1644083935291,0.34550674,41597.0,41593.0,0.00047128]
[1644083935690,0.335758,41596.0,41593.0,0.00047128]
[1644083935894,0.75,41594.0,41582.0,0.20073789]
[1644083936095,0.75,41594.0,41578.0,0.074]
[1644083936096,0.12664862,41592.0,41578.0,0.074]
[1644083936295,0.335758,41589.0,41578.0,0.074]
[1644083936692,0.84068181,41587.0,41578.0,0.074]
[1644083936891,1.17643981,41586.0,41571.0,0.02]
[1644083937192,0.335758,41575.0,41571.0,0.02]
[1644083937393,0.1,41587.0,41571.0,0.02]
[1644083937394,0.0481,41584.0,41571.0,0.02]
[1644083937594,0.06495585,41583.0,41572.0,0.060146]
[1644083937794,0.06495585,41583.0,41571.0,0.02]
[1644083938190,0.06495585,41583.0,41579.0,0.27193173]
[1644083938434,0.0481,41584.0,41572.0,0.30963196]
[1644083938635,0.0481,41584.0,41573.0,0.15931819]
[1644083938837,0.0481,41584.0,41574.0,0.335758]
[1644083939043,0.0481,41584.0,41583.0,0.05]
[1644083939436,0.0481,41584.0,41583.0,0.3244134]
[1644083939636,0.0481,41584.0,41583.0,0.335758]
[1644083939837,0.0481,41584.0,41582.0,0.03131]
[1644083940037,0.01853201,41587.0,41582.0,0.03131]
[1644083940038,0.29378772,41583.0,41582.0,0.03131]
[1644083940240,0.335758,41582.0,41581.0,0.00071532]
[1644083940437,0.3,41581.0,41571.0,0.13885406]
[1644083940637,0.06404122,41582.0,41573.0,0.2551703]
[1644083940836,0.06404122,41582.0,41574.0,0.335758]
[1644083941038,0.29378772,41583.0,41574.0,0.335758]
[1644083941238,0.29795106,41582.0,41574.0,0.335758]
[1644083941438,0.29378772,41583.0,41573.0,0.2551703]
[1644083941641,0.27288891,41582.0,41573.0,0.2551703]
[1644083941839,0.57025614,41582.0,41573.0,0.2551703]
[1644083942090,0.29378772,41583.0,41573.0,0.2551703]
[1644083942484,0.3763894,41588.0,41573.0,0.2551703]
[1644083943083,0.3763894,41588.0,41581.0,0.27347531]
[1644083943084,0.45066784,41588.0,41581.0,0.27347531]
[1644083943286,0.335758,41587.0,41581.0,0.27347531]
[1644083943684,0.3763894,41588.0,41581.0,0.27347531]
[1644083943987,0.3763894,41588.0,41581.0,0.26347531]
[1644083944188,0.06812723,41589.0,41581.0,0.26347531]
[1644083944587,0.00071519,41587.0,41581.0,0.26347531]
[1644083945587,0.66504644,41592.0,41581.0,0.26347531]
[1644083945588,0.42085509,41592.0,41581.0,0.26347531]
[1644083945838,0.0007152,41586.0,41581.0,0.26347531]
[1644083946036,0.0007152,41586.0,41582.0,0.335796]
[1644083946240,0.0007152,41586.0,41585.0,0.05]
[1644083946439,0.0007152,41586.0,41585.0,0.114461]
[1644083946639,0.0007152,41586.0,41585.0,0.21877919]
[1644083946844,0.13744397,41599.0,41585.0,0.21877919]
[1644083947041,0.13744397,41599.0,41588.0,0.10431819]
[1644083947238,0.01824397,41599.0,41588.0,0.4613958]
[1644083947441,0.01824397,41599.0,41592.0,0.10431819]
[1644083947839,0.01824397,41599.0,41598.0,0.23502188]
[1644083948039,0.01824397,41599.0,41598.0,0.23432188]
[1644083948440,0.01824397,41599.0,41598.0,0.38864007]
[1644083948940,0.01824397,41599.0,41598.0,0.38484007]
[1644083949346,0.16520092,41604.0,41598.0,0.38484007]
[1644083949589,0.00067358,41601.0,41599.0,0.05]
[1644083949784,0.00067358,41601.0,41600.0,0.10051819]
[1644083950083,0.00067358,41601.0,41596.0,0.10051819]
[1644083950284,0.00067358,41601.0,41593.0,0.10051819]
[1644083950483,0.26227212,41607.0,41593.0,0.10051819]
[1644083950685,0.00067358,41601.0,41593.0,0.10051819]
[1644083950883,0.00067358,41601.0,41595.0,0.05]
[1644083951082,0.00067358,41601.0,41597.0,0.26462821]
[1644083951785,0.26227212,41607.0,41597.0,0.26462821]
[1644083951989,0.00067636,41601.0,41600.0,0.3175591]
[1644083952484,0.00067636,41601.0,41600.0,0.41807729]
[1644083952986,5.8003782,41605.0,41600.0,0.41807729]
[1644083953183,0.00065151,41603.0,41600.0,0.41807729]
[1644083954030,5.8003782,41605.0,41600.0,0.3175591]
[1644083954430,0.00065214,41604.0,41600.0,0.3175591]
[1644083954834,5.80021034,41605.0,41600.0,0.3175591]
[1644083955030,5.80021034,41605.0,41604.0,0.20792962]
[1644083955433,5.77903513,41605.0,41604.0,0.20792962]
[1644083956334,5.77903513,41605.0,41594.0,0.00028132]
[1644083956535,5.77903513,41605.0,41593.0,0.10051819]
[1644083956733,5.77903513,41605.0,41593.0,0.10079951]
[1644083957382,0.07056995,41603.0,41597.0,0.27511974]
[1644083958585,0.07056995,41603.0,41595.0,0.00028132]
[1644083958789,0.07056995,41603.0,41593.0,0.10051819]
[1644083958790,0.335796,41602.0,41594.0,0.00028132]
[1644083959086,0.335796,41602.0,41588.0,0.3973]
[1644083959087,0.335796,41600.0,41593.0,0.00028132]
[1644083959285,0.435796,41600.0,41591.0,0.00267762]
[1644083959485,0.535796,41600.0,41591.0,0.00267762]
[1644083959692,0.24512488,41594.0,41591.0,0.00267762]
[1644083959884,0.64471543,41593.0,41591.0,0.00267762]
[1644083960086,0.64471543,41593.0,41589.0,0.00028132]
[1644083960287,0.335796,41593.0,41588.0,0.21113156]
[1644083960485,0.39491557,41601.0,41588.0,0.21113156]
[1644083960933,0.39491557,41601.0,41587.0,0.00028132]
[1644083961133,0.335796,41600.0,41589.0,0.38323558]
[1644083961935,0.0639217,41599.0,41589.0,0.38323558]
[1644083962134,0.33055183,41598.0,41592.0,0.19705716]
[1644083963036,0.335796,41597.0,41587.0,0.00299353]
[1644083963235,0.335796,41597.0,41588.0,0.00028132]
[1644083963436,0.33055183,41598.0,41587.0,0.00299353]
[1644083963637,0.33055183,41598.0,41587.0,0.00028132]
[1644083963838,0.33055183,41598.0,41586.0,0.41696823]
[1644083964038,0.33055183,41598.0,41590.0,0.22069933]
[1644083964438,0.335796,41600.0,41590.0,0.22069933]
[1644083965285,0.07951575,41599.0,41590.0,0.22069933]
[1644083965487,0.31635446,41598.0,41590.0,0.22069933]
[1644083965986,0.38235294,41601.0,41590.0,0.22069933]
[1644083966186,0.335796,41600.0,41590.0,0.22069933]
[1644083966788,0.08316288,41595.0,41587.0,0.00028132]
[1644083966989,0.08316288,41595.0,41586.0,0.05334498]
[1644083967391,0.08316288,41595.0,41585.0,0.00028132]
[1644083967587,0.08316288,41595.0,41586.0,0.00066958]
[1644083967793,0.08316288,41595.0,41589.0,0.27331735]
[1644083968837,0.08316288,41595.0,41589.0,0.26831735]
[1644083969051,0.21959837,41595.0,41589.0,0.26831735]
[1644083969438,0.60155294,41601.0,41587.0,0.00028132]
[1644083969641,0.60155294,41601.0,41582.0,0.10051819]
[1644083969642,0.09948181,41595.0,41585.0,0.00028132]
[1644083969845,0.09948181,41595.0,41569.0,4.26390203]
[1644083969846,0.3481,41594.0,41586.0,0.0006696]
[1644083970042,0.335796,41593.0,41586.0,0.00334804]
[1644083970240,0.0481,41592.0,41586.0,0.00334804]
[1644083970438,0.335796,41591.0,41586.0,0.00334804]
[1644083970639,0.08342038,41587.0,41586.0,0.00334804]
[1644083970838,0.08342038,41587.0,41584.0,0.21251265]
[1644083970839,0.335796,41587.0,41585.0,0.00028132]
[1644083971038,0.0481,41591.0,41584.0,0.21318219]
[1644083972090,0.0481,41591.0,41588.0,0.33850757]
[1644083972285,1.05807424,41599.0,41588.0,0.33850757]
[1644083972286,0.95807424,41599.0,41588.0,0.33850757]
[1644083972485,0.02037424,41599.0,41590.0,0.05]
[1644083972688,0.02037424,41599.0,41595.0,0.26760422]
[1644083972886,0.335796,41598.0,41595.0,0.26760422]
[1644083973086,0.3,41597.0,41591.0,0.00028132]
[1644083973386,0.3,41597.0,41581.0,0.05]
[1644083973387,0.335796,41596.0,41590.0,0.00028132]
[1644083973584,0.3,41601.0,41588.0,0.00267818]
[1644083973786,2.97111936,41600.0,41588.0,0.00267818]
[1644083974185,0.08150311,41595.0,41590.0,0.25408205]
[1644083974386,0.3,41602.0,41590.0,0.25408205]
[1644083974984,0.3,41602.0,41590.0,0.25436337]
[1644083974985,0.02139149,41601.0,41590.0,0.25436337]
[1644083975185,0.25100088,41601.0,41590.0,0.25038205]
[1644083975833,0.02139149,41601.0,41595.0,0.2950658]
[1644083976034,0.335796,41600.0,41595.0,0.2950658]
[1644083976933,0.335796,41600.0,41597.0,0.23571431]
[1644083977134,0.335796,41600.0,41595.0,0.2950658]
[1644083977937,0.335796,41600.0,41595.0,0.3450658]
[1644083978534,0.335796,41600.0,41598.0,0.05]
[1644083978737,0.00066926,41606.0,41599.0,0.23303485]
[1644083979135,0.00066926,41606.0,41602.0,0.05]
[1644083979435,0.61069902,41611.0,41602.0,0.05]
[1644083979684,0.61069902,41611.0,41604.0,0.34873524]
[1644083979685,0.00025184,41606.0,41604.0,0.34873524]
[1644083979886,6.11483113,41605.0,41604.0,0.34873524]
[1644083980085,5.77903513,41605.0,41604.0,0.34873524]
[1644083988685,5.77903513,41605.0,41603.0,0.10051819]
[1644083989685,5.77903513,41605.0,41602.0,0.05]
[1644083989886,5.77903513,41605.0,41603.0,0.10051819]
[1644083990488,5.77903513,41605.0,41602.0,0.05]
[1644083990842,5.77903513,41605.0,41603.0,0.10051819]
[1644083991039,5.77903513,41605.0,41602.0,0.05]
[1644083991242,5.77903513,41605.0,41604.0,0.10051819]
[1644083991643,5.77903513,41605.0,41604.0,0.14861819]
[1644083992245,0.46165335,41605.0,41604.0,0.7518254]
[1644083992447,0.001,41621.0,41605.0,0.75]
[1644083992644,0.001,41621.0,41613.0,0.75]
[1644083992842,0.001,41621.0,41620.0,0.114182]
[1644083993644,0.001,41621.0,41620.0,0.162282]
[1644083994245,0.001,41621.0,41620.0,0.158682]
[1644083994685,0.001,41621.0,41620.0,0.421087]
[1644083995584,0.001,41621.0,41620.0,0.158682]
[1644083997090,0.001,41621.0,41620.0,0.108682]
[1644083997287,0.001,41621.0,41620.0,0.105182]
[1644083998087,0.001,41621.0,41620.0,0.155182]
[1644083998738,0.001,41621.0,41620.0,0.105182]
[1644084000141,0.001,41621.0,41620.0,0.101682]
[1644084000343,0.001,41621.0,41620.0,0.053582]
[1644084000543,0.001,41621.0,41614.0,0.1182]
[1644084000745,0.08913599,41616.0,41608.0,0.05]
[1644084001148,0.08337944,41609.0,41604.0,0.5582]
[1644084001343,0.0481,41616.0,41601.0,1.26011819]
[1644084001344,0.55885868,41615.0,41605.0,0.335717]
[1644084001543,0.55885868,41615.0,41606.0,0.05]
[1644084001544,0.54246595,41615.0,41606.0,0.05]
[1644084001743,0.335717,41614.0,41603.0,0.15051819]
[1644084001943,0.54246595,41615.0,41608.0,0.01702576]
[1644084002188,0.335717,41614.0,41603.0,0.15051819]
[1644084002491,0.335717,41614.0,41601.0,0.3796]
[1644084002492,0.60759093,41606.0,41601.0,0.00071913]
[1644084002691,0.08428638,41602.0,41601.0,0.00071913]
[1644084003287,0.42000338,41602.0,41593.0,0.00028132]
[1644084003487,0.08428638,41602.0,41601.0,0.01702576]
[1644084003689,0.42000338,41602.0,41592.0,0.3639]
[1644084003887,0.0481,41603.0,41595.0,0.05]
[1644084004088,0.60759093,41606.0,41592.0,0.36418132]
[1644084004288,0.60759093,41606.0,41592.0,0.36078132]
[1644084004886,0.07435751,41599.0,41592.0,0.36078132]
[1644084005087,0.01676,41605.0,41599.0,0.01702576]
[1644084005288,0.335717,41604.0,41592.0,0.36078132]
[1644084005834,0.24803932,41599.0,41592.0,0.36078132]
[1644084006037,0.01676,41605.0,41592.0,0.00028132]
[1644084006241,0.01676,41605.0,41595.0,0.05]
[1644084006439,0.01676,41605.0,41592.0,0.3]
[1644084006440,0.01676,41605.0,41598.0,0.05]
[1644084006640,0.01676,41605.0,41600.0,0.01702576]
[1644084006836,0.01676,41605.0,41598.0,0.05]
[1644084007037,0.03792909,41605.0,41598.0,0.05]
[1644084007243,0.07259455,41604.0,41600.0,0.00071856]
[1644084007438,0.03792909,41605.0,41600.0,0.00071856]
[1644084008139,0.03792909,41605.0,41602.0,0.01702576]
[1644084008541,0.335717,41604.0,41602.0,0.01702576]
[1644084008744,0.335717,41604.0,41600.0,0.00071856]
[1644084008745,0.03792909,41605.0,41600.0,0.00071856]
[1644084008940,0.22584368,41603.0,41600.0,0.00071856]
[1644084009341,0.22584368,41603.0,41599.0,0.05]
[1644084009599,0.22584368,41603.0,41599.0,0.00071857]
[1644084009786,0.22584368,41603.0,41601.0,0.01702576]
[1644084010187,0.22584368,41603.0,41600.0,0.05]
[1644084010387,0.22584368,41603.0,41601.0,0.10051819]
[1644084010588,0.01676,41602.0,41601.0,0.10051819]
[1644084010787,0.01676,41602.0,41601.0,0.43623519]
[1644084011187,0.01676,41602.0,41601.0,0.45326095]
[1644084011394,0.01676,41602.0,41601.0,0.35274276]
[1644084011988,0.01676,41602.0,41601.0,0.01702576]
[1644084014141,0.12968184,41602.0,41601.0,0.01702576]
[1644084014337,0.24260368,41602.0,41601.0,0.01702576]
[1644084014539,0.22584368,41602.0,41601.0,0.01702576]
[1644084015844,0.56156068,41602.0,41601.0,0.01702576]
[1644084016240,0.55656068,41602.0,41601.0,0.01702576]
[1644084016441,0.85999081,41602.0,41601.0,0.01702576]
[1644084016648,0.55656068,41602.0,41601.0,0.01702576]
[1644084016842,0.65656068,41602.0,41601.0,0.01702576]
[1644084017097,0.94385896,41602.0,41601.0,0.01702576]
[1644084017392,0.31960579,41590.0,41589.0,0.00028132]
[1644084017593,0.39609177,41590.0,41588.0,0.01865638]
[1644084017992,0.07648598,41590.0,41588.0,0.01865638]
[1644084018194,0.07648598,41590.0,41589.0,0.335717]
[1644084018392,0.07648598,41590.0,41588.0,0.01865638]
[1644084018592,0.07648598,41590.0,41589.0,0.335717]
[1644084018994,0.07648598,41590.0,41582.0,0.05]
[1644084018995,0.07648598,41590.0,41584.0,0.00028132]
[1644084019199,0.07648598,41590.0,41586.0,0.00028132]
[1644084019394,0.10792184,41586.0,41582.0,0.00028132]
[1644084019595,0.22084368,41586.0,41583.0,0.33599832]
[1644084019895,0.22084368,41586.0,41583.0,0.05]
[1644084020092,0.22084368,41586.0,41584.0,0.335717]
[1644084020294,0.22084368,41586.0,41585.0,0.05]
[1644084020594,0.22084368,41586.0,41585.0,0.41960327]
[1644084021047,0.23760368,41586.0,41585.0,0.41960327]
[1644084021246,0.01938757,41598.0,41587.0,0.335693]
[1644084021647,0.0481,41597.0,41587.0,0.00028132]
[1644084021849,0.01938757,41598.0,41588.0,0.335717]
[1644084022053,0.23342738,41596.0,41587.0,0.00028132]
[1644084022247,0.0814244,41593.0,41587.0,0.335717]
[1644084022448,0.3603169,41591.0,41587.0,0.00028132]
[1644084022645,0.3603169,41591.0,41586.0,0.45060863]
[1644084022847,0.3603169,41591.0,41588.0,0.0007176]
[1644084023848,0.3603169,41591.0,41587.0,0.05028132]
[1644084024046,0.23342738,41596.0,41587.0,0.0507176]
[1644084024248,0.3965625,41602.0,41587.0,0.00099892]
[1644084024453,0.335717,41601.0,41589.0,0.05]
[1644084024698,0.32218862,41602.0,41589.0,0.15051819]
[1644084024897,0.32218862,41602.0,41589.0,0.00028132]
[1644084025102,0.34869411,41600.0,41588.0,0.00028132]
[1644084025398,0.335717,41597.0,41593.0,0.00071754]
[1644084025599,0.0719358,41594.0,41593.0,0.00071754]
[1644084025801,0.4076528,41594.0,41593.0,0.00071754]
[1644084026197,0.4076528,41594.0,41588.0,0.00028132]
[1644084026400,0.0719358,41594.0,41591.0,0.00071756]
[1644084026598,0.5,41592.0,41586.0,0.44632619]
[1644084026898,0.26886024,41591.0,41586.0,0.44660751]
[1644084027297,0.16886024,41591.0,41586.0,0.44660751]
[1644084027499,0.16886024,41591.0,41587.0,0.335717]
[1644084027697,0.3416737,41593.0,41587.0,0.335717]
[1644084028098,0.42757352,41602.0,41587.0,0.00028132]
[1644084028341,0.57757352,41602.0,41586.0,0.44632619]
[1644084028543,0.42757352,41602.0,41586.0,0.44632619]
[1644084028744,0.25588429,41598.0,41590.0,0.10051819]
[1644084028944,0.25588429,41598.0,41592.0,0.05]
[1644084029243,0.30210574,41596.0,41589.0,0.00046677]
[1644084029542,0.30210574,41596.0,41590.0,0.00028132]
[1644084029748,0.30210574,41596.0,41589.0,0.00046677]
[1644084029944,0.30210574,41596.0,41587.0,0.00028132]
[1644084030145,0.30210574,41596.0,41589.0,0.0007176]
[1644084030345,0.20314033,41591.0,41589.0,0.0007176]
[1644084030545,0.30210574,41596.0,41589.0,0.0007176]
[1644084031144,0.30210574,41596.0,41587.0,0.00028132]
[1644084031345,0.30210574,41596.0,41589.0,0.0007176]
[1644084031548,0.2756007,41595.0,41589.0,0.0007176]
[1644084031946,0.30210574,41596.0,41589.0,0.0007176]
[1644084032192,0.30210574,41596.0,41589.0,0.00028132]
[1644084032498,0.00071739,41601.0,41589.0,0.0007176]
[1644084032693,0.00071739,41601.0,41589.0,0.00099892]
[1644084032891,0.34429199,41596.0,41589.0,0.0007176]
[1644084033092,0.27280755,41596.0,41589.0,0.0007176]
[1644084033490,0.27280755,41596.0,41589.0,0.00028132]
[1644084033690,0.27280755,41596.0,41589.0,0.0007176]
[1644084033890,0.27280755,41596.0,41589.0,0.00099892]
[1644084034091,0.34167764,41597.0,41589.0,0.00099892]
[1644084034492,0.34167764,41597.0,41589.0,0.0007176]
[1644084034692,0.34167764,41597.0,41587.0,0.00028132]
[1644084034893,0.34167764,41597.0,41586.0,0.44632619]
[1644084035098,0.08161682,41593.0,41586.0,0.44265119]
[1644084035296,0.26108844,41594.0,41587.0,0.55]
[1644084035493,0.36548973,41589.0,41587.0,0.00028132]
[1644084035697,0.36548973,41589.0,41588.0,0.335717]
[1644084036142,0.36548973,41589.0,41586.0,0.44293251]
[1644084036340,0.36548973,41589.0,41586.0,0.44265119]
[1644084039145,0.05,41588.0,41586.0,0.44265119]
[1644084039345,0.335717,41587.0,41586.0,0.44265119]
[1644084039793,0.435717,41587.0,41586.0,0.44265119]
[1644084039992,0.69517774,41587.0,41586.0,0.44265119]
[1644084040198,0.59517774,41587.0,41586.0,0.44265119]
[1644084043097,0.69517774,41587.0,41586.0,0.44265119]
[1644084043348,0.74517774,41587.0,41586.0,0.44265119]
[1644084044050,0.46548973,41589.0,41586.0,0.44265119]
[1644084044247,0.36548973,41589.0,41586.0,0.44265119]
[1644084044445,0.12418,41598.0,41586.0,0.44265119]
[1644084044648,0.12418,41598.0,41587.0,0.3]
[1644084044851,0.12418,41598.0,41586.0,0.44265119]
[1644084045047,0.08142839,41593.0,41586.0,0.44293251]
[1644084045845,0.08142839,41593.0,41587.0,0.00070237]
[1644084046046,0.23039673,41595.0,41587.0,0.00098369]
[1644084046649,0.30195351,41589.0,41587.0,0.00098369]
[1644084046848,0.30195351,41589.0,41586.0,0.44265119]
[1644084047293,0.40195351,41589.0,41586.0,0.44265119]
[1644084047896,0.30195351,41589.0,41586.0,0.44265119]
[1644084049397,0.21092457,41588.0,41586.0,0.44265119]
[1644084049595,0.335717,41587.0,41586.0,0.44265119]
[1644084049995,0.21092457,41588.0,41586.0,0.44265119]
[1644084050695,0.30195351,41589.0,41586.0,0.44265119]
[1644084051744,0.40195351,41589.0,41586.0,0.44265119]
[1644084051943,0.30195351,41589.0,41586.0,0.44265119]
[1644084052544,0.40195351,41589.0,41586.0,0.44265119]
[1644084052750,0.05,41588.0,41586.0,0.44265119]
[1644084053345,0.20252552,41587.0,41586.0,0.44265119]
[1644084053547,0.53824252,41587.0,41586.0,0.44265119]
[1644084053948,0.63824252,41587.0,41586.0,0.44265119]
[1644084054987,0.53824252,41587.0,41586.0,0.44265119]
[1644084055389,0.20252552,41587.0,41586.0,0.44265119]
[1644084055589,0.30195351,41589.0,41586.0,0.44265119]
[1644084056888,0.07265693,41587.0,41586.0,0.44265119]
[1644084057089,0.30195351,41589.0,41586.0,0.44265119]
[1644084058090,0.07687127,41587.0,41586.0,0.44265119]
[1644084059239,0.41258827,41587.0,41586.0,0.44265119]
[1644084059444,0.41258827,41587.0,41575.0,0.3]
[1644084059445,0.75,41585.0,41575.0,0.3]
[1644084059644,0.75,41585.0,41571.0,0.02]
[1644084059645,0.383817,41584.0,41571.0,0.02]
[1644084059842,0.335717,41581.0,41571.0,0.02]
[1644084060039,0.08193366,41576.0,41571.0,0.02]
[1644084060440,0.35193102,41574.0,41571.0,0.02]
[1644084061243,0.19600936,41573.0,41571.0,0.02]
[1644084061644,0.35193102,41574.0,41571.0,0.02]
[1644084062796,0.20571931,41573.0,41566.0,0.07930908]
[1644084063404,0.0033,41568.0,41564.0,0.04854531]
[1644084063600,0.0033,41568.0,41564.0,0.0467]
[1644084063799,0.0033,41568.0,41561.0,0.02]
[1644084063800,0.2102515,41565.0,41561.0,0.02]
[1644084064000,0.2102515,41565.0,41564.0,0.0467]
[1644084064397,0.37957189,41565.0,41564.0,0.0467]
[1644084064596,0.37957189,41565.0,41561.0,0.02]
[1644084064797,0.71528889,41565.0,41564.0,0.0467]
[1644084064999,0.71528889,41565.0,41561.0,0.02]
[1644084065398,0.23663625,41565.0,41561.0,0.02]
[1644084065699,0.0033,41563.0,41561.0,0.02]
[1644084066144,0.33584,41562.0,41561.0,0.02]
[1644084066344,0.73642752,41562.0,41561.0,0.02]
[1644084066543,0.73642752,41562.0,41561.0,0.01287078]
[1644084067646,1.04652049,41562.0,41561.0,0.01287078]
[1644084068149,0.33584,41562.0,41561.0,0.01287078]
[1644084068349,0.0033,41572.0,41561.0,0.16008897]
[1644084068554,0.33584,41570.0,41566.0,0.0467]
[1644084068848,0.33584,41570.0,41561.0,0.11338897]
[1644084068849,0.33584,41570.0,41561.0,0.01287078]
[1644084069047,0.06919729,41567.0,41561.0,0.01287078]
[1644084069257,0.28783333,41564.0,41561.0,0.01287078]
[1644084069448,0.33584,41563.0,41561.0,0.01287078]
[1644084069696,0.1211,41573.0,41562.0,0.0467]
[1644084069895,0.1211,41573.0,41566.0,0.0467]
[1644084069896,0.33584,41572.0,41566.0,0.0467]
[1644084070093,0.33584,41572.0,41562.0,0.0467]
[1644084070293,0.0043,41574.0,41566.0,0.0467]
[1644084070494,0.001,41574.0,41566.0,0.0467]
[1644084070693,0.30205512,41571.0,41566.0,0.0467]
[1644084071495,0.33584,41570.0,41566.0,0.0467]
[1644084071897,0.30205512,41571.0,41566.0,0.0467]
[1644084072095,0.30205512,41571.0,41562.0,0.10051819]
[1644084072096,0.30205512,41571.0,41562.0,0.0467]
[1644084072297,0.001,41574.0,41566.0,0.10122865]
[1644084072601,0.001,41574.0,41573.0,0.0467]
[1644084072998,0.001,41574.0,41573.0,0.0367]
[1644084074248,0.001,41574.0,41573.0,0.37254]
[1644084074644,0.001,41574.0,41573.0,0.64771605]
[1644084074848,0.0005871,41574.0,41573.0,0.64771605]
[1644084075045,0.0005871,41574.0,41573.0,0.88971626]
[1644084075444,0.00126214,41574.0,41573.0,0.64771605]
[1644084076255,0.00126214,41574.0,41573.0,0.0367]
[1644084077997,0.00126214,41574.0,41570.0,0.0367]
[1644084078198,0.00126214,41574.0,41568.0,0.00071046]
[1644084078400,0.00126214,41574.0,41568.0,0.00051046]
[1644084078401,0.08118895,41570.0,41568.0,0.00051046]
[1644084079097,0.98332648,41569.0,41568.0,0.00051046]
[1644084079301,0.98332648,41569.0,41563.0,0.00028014]
[1644084079302,0.64748648,41569.0,41563.0,0.00028014]
[1644084079501,0.0133,41564.0,41562.0,0.00028014]
[1644084079700,0.070542,41563.0,41561.0,0.01287078]
[1644084080101,0.21700816,41562.0,41561.0,0.01287078]
[1644084080299,0.59955785,41562.0,41561.0,0.01287078]
[1644084080500,0.93539785,41562.0,41561.0,0.01287078]
[1644084081349,0.71838969,41562.0,41561.0,0.01287078]
[1644084081944,0.71838969,41562.0,41561.0,0.00287078]
[1644084082745,0.71838969,41562.0,41561.0,0.03957078]
[1644084083545,0.71846719,41562.0,41561.0,0.03957078]
[1644084083745,0.71846719,41562.0,41561.0,0.02957078]
[1644084084145,0.71846719,41562.0,41559.0,0.00028014]
[1644084084345,0.33584,41561.0,41559.0,0.00070998]
[1644084084600,0.3359175,41561.0,41559.0,0.00070998]
[1644084085295,0.0481,41560.0,41557.0,0.00028014]
[1644084085502,0.33584,41559.0,41558.0,0.00070999]
[1644084085694,0.35634672,41559.0,41558.0,0.00070999]
[1644084085894,0.3359175,41559.0,41558.0,0.00070999]
[1644084086195,0.3359175,41559.0,41556.0,0.04099013]
[1644084086196,7.75e-05,41559.0,41556.0,0.04099013]
[1644084086395,7.75e-05,41559.0,41556.0,0.04070999]
[1644084086599,7.75e-05,41559.0,41556.0,0.03570999]
[1644084087696,7.75e-05,41559.0,41556.0,0.03563249]
[1644084089154,0.02042922,41557.0,41556.0,0.03563249]
[1644084089349,0.33584,41558.0,41556.0,0.03563249]
[1644084089549,0.33584,41558.0,41557.0,0.02957078]
[1644084089949,0.33584,41558.0,41556.0,0.03563249]
[1644084090150,0.33584,41558.0,41556.0,0.02143249]
[1644084090550,0.35626922,41558.0,41556.0,0.02143249]
[1644084091951,7.75e-05,41559.0,41556.0,0.02143249]
[1644084092601,7.75e-05,41559.0,41557.0,0.02957078]
[1644084092801,7.75e-05,41559.0,41557.0,0.13008897]
[1644084093002,7.75e-05,41559.0,41558.0,0.66367144]
[1644084093202,7.75e-05,41559.0,41558.0,0.71177144]
[1644084093800,7.75e-05,41559.0,41558.0,0.97166069]
[1644084094202,7.75e-05,41559.0,41558.0,1.17166069]
[1644084094505,0.0001775,41562.0,41560.0,0.225476]
[1644084094700,0.0001775,41562.0,41561.0,0.38359797]
[1644084094901,0.0001775,41562.0,41561.0,0.81940997]
[1644084095100,0.0001775,41562.0,41561.0,0.91992816]
[1644084095303,0.00045639,41571.0,41562.0,0.7]
[1644084095503,0.00045639,41571.0,41569.0,0.02957078]
[1644084095947,0.00060852,41571.0,41569.0,0.02957078]
[1644084096348,0.00060852,41571.0,41569.0,0.2766558]
[1644084096551,0.00060852,41571.0,41569.0,0.37717399]
[1644084096751,0.00060852,41571.0,41569.0,0.46592897]
[1644084096948,0.00060852,41571.0,41569.0,0.36541078]
[1644084097152,0.00045639,41571.0,41569.0,0.36541078]
[1644084098250,0.00030426,41571.0,41569.0,0.46592897]
[1644084098451,0.00030426,41571.0,41569.0,0.76592897]